{"text_format":"2","workbook":"xlsx","n_sheets":3,"sheets":["BdC e-services","Fichiers Infra EFC","Récapitulatif"],"not_rendered":{"charts":0,"images":1,"macros":0,"external_links":1,"defined_names":4,"comments":0,"pivot_tables":0},"unopened":[],"bounds":{"document_bytes":16777216,"sheet_cells":100000,"run_cost":"one","rows_first":2000,"rows_last":500,"rows_between":2000,"halvings":0,"cell_chars":16384,"cell_head_chars":4096},"cells_cut":0,"cells_raw":0,"read":"whole","date_system":"1900"}

{"sheet":"BdC e-services","index":0,"n_rows":102,"n_cols":19,"rows_kept":102,"cut":false,"hidden":false,"merged":[[99,5,99,8],[104,1,104,9],[97,4,97,9],[63,4,63,6],[63,7,63,10],[85,7,85,10],[91,5,91,8],[90,4,90,6],[90,7,90,10],[85,4,85,6],[70,4,70,6],[70,7,70,10],[93,5,93,8],[80,4,80,6],[80,7,80,10],[60,3,60,4],[67,3,67,4],[1,4,1,9],[3,4,3,9],[5,1,9,9],[31,1,31,10],[32,1,32,9],[25,1,29,10],[47,4,47,6],[54,4,54,6],[58,3,58,4],[57,3,57,4]]}
[{"$nulls":5},"Bon de Commande e-services"]
[null,"Affaire : "]
[]
[null,"Numéro de contrat :   ",null,null,"[Référence des CG e-services signées]"]
[]
[null,"Ce document permet de souscrire à des e-services ou d’en modifier certains paramètres.\nUne demande de modification peut concerner, selon les services :\n- L’ajout du mode intégré des services en API ou Webservices\n- La modification de protocole d’échange pour les transferts de fichiers"]
[]
[{"$nulls":13},"Table des menus déroulants"]
[]
[{"$nulls":13},"X","En ligne","En ligne + Webservices","Ajout Webservices"]
[null,"Identité du contractant",{"$nulls":12},"En ligne","En ligne + API","Ajout API"]
[null,"*","Raison sociale de l'Opérateur : ",{"$nulls":11},"En ligne","En ligne + Webservices","En ligne + API","Ajout API"]
[null,"*","SIREN :"]
[null,"*","Représenté par (nom/prénom) :"]
[null,"*","Téléphone :"]
[null,"*","e-mail :"]
[null,"*","Adresse :",{"$nulls":10},"FTP","CFT","FTP SSL","CFT SSL","A définir en réunion de lancement","Via \"mes fichiers\" (Espace Opérateur RIP)"]
[]
[]
[{"$nulls":14},"Serveur mail (choix conseillé)","SFTP"]
[null,"*","Compte de facturation"]
[]
[null,"*","Les champs dont le libellé est précédé d’un astérisque (*) doivent être obligatoirement renseignés."]
[]
[null,"Commentaires"]
[]
[]
[]
[]
[]
[]
[null,"Le présent Bon de Commande est régi par les documents contractuels constitués des Conditions Générales \ne-services signées entre les Parties, et leurs annexes, ainsi que par les Conditions Spécifiques de chaque e-service souscrit et leurs annexes en vigueur."]
[null,"Le signataire du présent Bon de commande reconnait avoir pris connaissance et approuver les Conditions Spécifiques associées à chaque e-service dont il souhaite bénéficier, et sélectionnés dans les pages suivantes du présent document."]
[]
[null,"Pour l'Opérateur"]
[null,"Fait à",{"$nulls":5},"le"]
{"$rows_empty":7}
[null,"Signature  (précédée du nom, prénom et qualité du signataire)"]
[]
[]
[null,"Choix des e-services"]
[{"$nulls":4},"Mode d'accès choisi à la souscription",null,null,null,"Modification souhaitée"]
[]
[null,null,null," Eligibilité Opérateur",null,"En ligne + API"]
[]
[null,null,null,"*e-mail du contact API : ",{"$f":"IF(F50=\"En ligne + API\",\"à renseigner obligatoirement\",IF(I50=\"Ajout API\",\"à renseigner obligatoirement\",\"\"))","v":"à renseigner obligatoirement"}]
[]
[]
[{"$nulls":4},"Mode d'accès choisi à la souscription",null,null,null,"Modification souhaitée"]
[]
[null,null,null,"  TAO"]
[null,null,null,"*e-mail du contact Webservices : ",null,{"$f":"IF(F57=\"En ligne + Webservices\",\"à renseigner obligatoirement\",IF(I57=\"Ajout Webservices\",\"à renseigner obligatoirement\",\"\"))","v":""}]
[{"$nulls":5},{"$f":"IF(G57=\"En ligne + API\",\"à renseigner obigatoirement\",IF(J57=\"Ajout API\",\"à renseigner obigatoirement\",\"\"))","v":""}]
[null,null,null,"  IFI "]
[null,null,null,"*e-mail du contact API ou Webservices : ",null,{"$f":"IF(F60=\"En ligne + API\",\"à renseigner obligatoirement\",IF(F60=\"En ligne + Webservices\",\"à renseigner obligatoirement\",\"\"))","v":""}]
[]
[]
[{"$nulls":4},"Mode d'accès choisi à la souscription",null,null,"Modification souhaitée"]
[]
[null,null,null,"FCI",null,"En ligne + Webservices"]
[]
[null,null,null,"*e-mail du contact Webservices : ",null,{"$f":"IF(G66=\"En ligne + API\",\"à renseigner obigatoirement\",IF(J66=\"Ajout API\",\"à renseigner obigatoirement\",\"\"))","v":""}]
[]
[]
[{"$nulls":4},"Mode d'accès choisi à la souscription",null,null,"Modification souhaitée"]
[]
[null,null,null,"e-RDV Avant Commande"]
[]
[]
[null,null,null,"*Périmètre applicable (au moment de la souscription)"]
[]
[null,null,null," Ligne FTTH (passif)",null,"  FTTH Active"]
[]
[]
[{"$nulls":4},"Mode d'accès choisi à la souscription",null,null,"Modification souhaitée"]
[]
[null,null,null," e-SAV"]
[]
[]
[{"$nulls":4},"Mode d'accès choisi à la souscription",null,null,"Modification souhaitée"]
[]
[null,null,null," e-Mutation Fibre FTTH",null,{"$f":"IF(C88=\"X\",\"Webservices uniquement\",\"\")","v":""},null,null,"Non disponible pour ce service"]
[]
[]
[{"$nulls":4},"Mode d'accès choisi à la souscription",null,null,"Ajout / Modification  de protocole"]
[{"$nulls":5},"Transfert automatisé de fichiers"]
[null,null,null,"Service EFC"]
[null,null," ",null,null,"Paramétrage pour les fichiers \"infra FTTH\" (plateforme EEP)"]
[{"$nulls":5},"Choix du protocole d'échanges",null,null,"Choix du nouveau protocole"]
[]
[]
[{"$nulls":4},"Renseigner l'onglet intitulé \"Fichiers Infra EFC\"  -  Ce document peut être renseigné ultérieurement (à récupérer dans les onglets \"masqués\" de ce document)  "]
[]
[{"$nulls":5},"Paramétrage pour les fichiers Accès FTTH\""]
[{"$nulls":5},"Choix du protocole d'échanges",null,null,"Pas de sélection de fichiers"]
[{"$nulls":5},"Serveur mail (choix conseillé)",null,null,"à faire pour les accès"]

{"sheet":"Fichiers Infra EFC","index":1,"n_rows":58,"n_cols":14,"rows_kept":58,"cut":false,"hidden":false,"merged":[[16,1,17,1],[0,2,0,6],[13,10,14,10],[13,11,14,11],[13,12,14,12],[0,11,0,12]]}
[null,null,"Annexe au BdC du Service EFC :\nliste des fichiers à recevoir par mail",{"$nulls":8},"Réception de fichiers\nvia le service EEP"]
[]
[null,"rappel de l'identité du demandeur"]
[]
[null,"Opérateur / SIREN",{"$f":"'[1]Service EFC'!E8","v":"[RAISON SOCIALE]"},null,{"$f":"'[1]Service EFC'!E9","v":"[SIRET]"}]
[]
[null,"Numéro de Contrat",{"$f":"'[1]Service EFC'!E4","v":"[REF CG SIGNEES]"}]
[]
[null,"Domaine : 'Facturation'","type","Identifiant CFT",{"$nulls":6},"Domaines / Types de fichiers","Libellé des fichiers","conditions contractuelles de mise à disposition des Fichiers","durée de mise à disposition"]
[null,"Réception des fichiers émis par le Fournisseur de services","fichier","ou répartoire FTP","e-mail 1","e-mail 2","e-mail 3","e-mail 4","e-mail 5",null,"Fichiers domaine \"Facturation\""]
[null,"factures","FACT-OFUSION",{"$nulls":7},{"$f":"C11","v":"FACT-OFUSION"},{"$f":"B11","v":"factures"},"Conditions Générales Espace Opérateurs","18 mois"]
[null,"annexes factures","FACTANX-OFUSION",{"$nulls":7},{"$f":"C12","v":"FACTANX-OFUSION"},{"$f":"B12","v":"annexes factures"},"Conditions Générales Espace Opérateurs","18 mois"]
[]
[null,"Domaine : 'FTTH-vente'","Type Fichier","Identifiant CFT",{"$nulls":6},"Fichiers domaine \"FTTH-Vente\"","Libellé des fichiers","conditions contractuelles de mise à disposition des Fichiers","durée de mise à disposition des fichiers "]
[null,"Réception des fichiers émis par le Fournisseur de services",null,"ou répartoire FTP","e-mail 1","e-mail 2","e-mail 3","e-mail 4","e-mail 5"]
[null,"Domaine :  (FTTH passif)"]
[null,"CR de MAD (fichier.csv)","V-MAD",{"$nulls":7},{"$f":"C17","v":"V-MAD"},{"$f":"B17","v":"CR de MAD (fichier.csv)"},"Offre d’accès aux lignes FTTH ","6 mois"]
[null,null,"V-CRMAD",{"$nulls":7},"V-CRMAD",null,"Offre d’accès aux lignes FTTH ","6 mois"]
[null,"Accusé Réception Commande Info et PM","V-ARINFO-PM",{"$nulls":7},"V-ARINFO-PM","Accusé Réception Commande Info et PM","Offre d’accès aux lignes FTTH ","6 mois"]
[null,"Info Syndic (fichier.zip)","V-INFOSY",{"$nulls":7},"V-INFOSY","Info Syndic (fichier.zip)","Offre d’accès aux lignes FTTH ","6 mois"]
[null,"CR d'Annulation ou résiliation de Commande","V-CRANNRES-PM",{"$nulls":7},"V-CRANNRES-PM","CR d'Annulation ou résiliation de Commande","Offre d’accès aux lignes FTTH ","6 mois"]
[null,"Dossier Technique Amiante","V-DTA ",{"$nulls":7},"V-DTA ","Dossier Technique Amiante","Offre d’accès aux lignes FTTH ","6 mois"]
[null,"Informations NRO ","V-INFO-NRO",{"$nulls":7},{"$f":"C23","v":"V-INFO-NRO"},"Informations NRO ","Fourniture d'informations relatives aux déploiements FTTH ","6 mois"]
[null,"Infos préalables enrichies ZMD, historique IPE ZMD et delta IPE","V-IPEZMD",{"$nulls":7},{"$f":"C24","v":"V-IPEZMD"},"Infos préalables enrichies ZMD, historique IPE ZMD et delta IPE","Fourniture d'informations relatives aux déploiements FTTH ","6 mois"]
[null,"Correspondance PM – NRO (fichier.csv), historique CPN ZMD et delta CPN","V-CPN",{"$nulls":7},"V-CPN","Correspondance PM – NRO (fichier.csv), historique CPN ZMD et delta CPN","Fourniture d'informations relatives aux déploiements FTTH ","6 mois"]
[null,"Mise à disposition de lien NRO PM","V-MAD-NROPM",{"$nulls":7},"V-MAD-NROPM","Mise à disposition de lien NRO PM","Offre d’accès aux lignes FTTH ","6 mois"]
[null,"Accusé Réception commande de lien NRO PM","V-ARCMD-NROPM",{"$nulls":7},"V-ARCMD-NROPM","Accusé Réception commande de lien NRO PM","Offre d’accès aux lignes FTTH ","6 mois"]
[null,"Compte Rendu Annulation ou Résiliation de lien NRO PM","V-CRANNRES-NROPM",{"$nulls":7},"V-CRANNRES-NROPM","Compte Rendu Annulation ou Résiliation de lien NRO PM","Offre d’accès aux lignes FTTH ","6 mois"]
[null,"Fichier des immeubles gelés et en anomalie de XXXX  (XXX = quadrigramme du Fournisseur de Service)","GELS-XXXX",{"$nulls":7},"GELS-XXXX",{"$f":"B29","v":"Fichier des immeubles gelés et en anomalie de XXXX  (XXX = quadrigramme du Fournisseur de Service)"},"Offre d’accès aux lignes FTTH ","1 mois"]
[null,"Accusé Réception Commande lien NRO-PM","V-ARCMD-PMPRDM",{"$nulls":7},"V-ARCMD-PMPRDM",{"$f":"B30","v":"Accusé Réception Commande lien NRO-PM"},"Offre d’accès aux lignes FTTH ","6 mois"]
[null,"Compte Rendu Livraison de commande lien NRO-PM","V-LIV-PMPRDM",{"$nulls":7},"V-LIV-PMPRDM","Compte Rendu Livraison de commande lien NRO-PM","Offre d’accès aux lignes FTTH ","6 mois"]
[null,"Compte Rendu Mise à Disposition commande lien NRO-PM      ","V-MAD-PMPRDM",{"$nulls":7},"V-MAD-PMPRDM","Compte Rendu Mise à Disposition commande lien NRO-PM      ","Offre d’accès aux lignes FTTH ","6 mois"]
[null,"Accusé Réception Commande annulation de commande lien NRO-PM","V-ARANN-PMPRDM",{"$nulls":7},"V-ARANN-PMPRDM","Accusé Réception Commande annulation de commande lien NRO-PM","Offre d’accès aux lignes FTTH ","6 mois"]
[null,"Compte Rendu Commande annulation de commande lien NRO-PM","V-CRANN-PMPRDM",{"$nulls":7},"V-CRANN-PMPRDM","Compte Rendu Commande annulation de commande lien NRO-PM","Offre d’accès aux lignes FTTH ","6 mois"]
[null,"Accusé Réception Commande résiliation lien NRO-PM","V-ARRES-PMPRDM",{"$nulls":7},"V-ARRES-PMPRDM","Accusé Réception Commande résiliation lien NRO-PM","Offre d’accès aux lignes FTTH ","6 mois"]
[null,"Compte Rendu Commande résiliation lien NRO-PM","V-CRRES-PMPRDM",{"$nulls":7},"V-CRRES-PMPRDM","Compte Rendu Commande résiliation lien NRO-PM","Offre d’accès aux lignes FTTH ","6 mois"]
[]
[null,"Domaine : BitStream Vente (FTTH active)"]
[null,"Fichier NRO et des PM ouverts à l’offre FTTH Active","V-BS-FTTH-XXXX_collective",{"$nulls":7},"V-BS-FTTH-XXXX_collective",{"$f":"B39","v":"Fichier NRO et des PM ouverts à l’offre FTTH Active"},"Offre Accès et Collecte Activées","6 mois"]
[null,"Domaine : BitStream Vente (FTTE active)",{"$nulls":8},0]
[null,"Fichier NRO ouverts à l’offre FTTE Active","V-BS-FTTE-XXXX_collective",{"$nulls":7},"V-BS-FTTE-XXXX_collective",{"$f":"B41","v":"Fichier NRO ouverts à l’offre FTTE Active"},"Offre Accès et Collecte Activées","6 mois"]
[]
[null,"Domaine : 'FTTH-vente'","type\nfichier",{"$nulls":7},"Type de fichier\nDomaine FTTH Vente","Libellé des fichiers","conditions contractuelles de mise à disposition des Fichiers","durée de mise à disposition des fichiers "]
[null,"Avis de dépôt des fichiers émis par l'Opérateur",null,"e-mail 1","e-mail 2","e-mail 3","e-mail 4","e-mail 5"]
[null,"Accusé Réception de MAD","V-ARMAD-PM",{"$nulls":7},{"$f":"C45","v":"V-ARMAD-PM"},{"$f":"B45","v":"Accusé Réception de MAD"},"Offre d’accès aux lignes FTTH ","6 mois"]
[null,"Rejet de Compte Rendu de MAD","V-REJETCRMAD-PM",{"$nulls":7},"V-REJETCRMAD-PM","Rejet de Compte Rendu de MAD","Offre d’accès aux lignes FTTH ","6 mois"]
[null,"Annulation ou résiliation de Commande","V-ANNRES-PM",{"$nulls":7},"V-ANNRES-PM","Annulation ou résiliation de Commande","Offre d’accès aux lignes FTTH ","6 mois"]
[null,"Notification d’adduction","V-ADDU",{"$nulls":7},"V-ADDU","Notification d’adduction","Offre d’accès aux lignes FTTH ","6 mois"]
[null,"Commande Info & PM","V-CMDINFO-PM",{"$nulls":7},"V-CMDINFO-PM","Commande Info & PM","Offre d’accès aux lignes FTTH ","6 mois"]
[null,"Notification d’intervention Prévisionnelle","V-INTERP",{"$nulls":7},"V-INTERP","Notification d’intervention Prévisionnelle","Offre d’accès aux lignes FTTH ","6 mois"]
[null,"Commande d'une prestation \"lien NRO PM\"","V-CMD-NROPM",{"$nulls":7},"V-CMD-NROPM","Commande d'une prestation \"lien NRO PM\"","Offre d’accès aux lignes FTTH ","6 mois"]
[null,"Annulation ou Résiliation de lien NRO PM","V-ANNRES-NROPM",{"$nulls":7},"V-ANNRES-NROPM","Annulation ou Résiliation de lien NRO PM","Offre d’accès aux lignes FTTH ","6 mois"]
[null,"AR Infos préalables enrichies","V-ARIPEZMD",{"$nulls":7},"V-ARIPEZMD","AR Infos préalables enrichies","Fourniture d'informations relatives aux déploiements FTTH ","6 mois"]
[null,"Rejet Infos préalables enrichies","V-REJETIPEZMD",{"$nulls":7},"V-REJETIPEZMD","Rejet Infos préalables enrichies","Fourniture d'informations relatives aux déploiements FTTH ","6 mois"]
[null,"Commande lien NRO-PM","V-CMD-PMPRDM",{"$nulls":7},{"$f":"C55","v":"V-CMD-PMPRDM"},{"$f":"B55","v":"Commande lien NRO-PM"},"Offre d’accès aux lignes FTTH ","6 mois"]
[null,"Compte Rendu Validation Livraison Commande lien NRO-PM","V-VALID-PMPRDM",{"$nulls":7},"V-VALID-PMPRDM","Compte Rendu Validation Livraison Commande lien NRO-PM","Offre d’accès aux lignes FTTH ","6 mois"]
[null,"Commande Résiliation lien NRO-PM","V-RES-PMPRDM",{"$nulls":7},"V-RES-PMPRDM","Commande Résiliation lien NRO-PM","Offre d’accès aux lignes FTTH ","6 mois"]
[null,"Commande Annulation Commande lien NRO-PM","V-ANN-PMPRDM",{"$nulls":7},"V-ANN-PMPRDM","Commande Annulation Commande lien NRO-PM","Offre d’accès aux lignes FTTH ","6 mois"]

{"sheet":"Récapitulatif","index":2,"n_rows":11,"n_cols":11,"rows_kept":11,"cut":false,"hidden":false,"merged":[[1,1,1,11]]}
[]
[null,"Récapitulatif des e-services souscrits ou modifiés\nA usage interne pour vérification \n(ceci n'est pas un Bon de Commande)"]
[]
[]
[null,null,{"$f":"'BdC e-services'!C50","v":0},null,"Eligibilité Opérateur",null,null,{"$f":"+'BdC e-services'!C93","v":0},null,"Service EFC"]
[]
[null,null,{"$f":"'BdC e-services'!C57","v":0},null,"TAO",{"$f":"IF('BdC e-services'!F57<>\"\",'BdC e-services'!F57,'BdC e-services'!I57)","v":0},null,{"$f":"+'BdC e-services'!C60","v":0},null,"IFI"]
[]
[null,null,{"$f":"'BdC e-services'!C66","v":0},null,"FCI",null,null,{"$f":"+'BdC e-services'!C88","v":0},null,"e-Mutation Fibre FTTH",{"$f":"IF('BdC e-services'!F83<>\"\",'BdC e-services'!F83,'BdC e-services'!I83)","v":0}]
[]
[null,null,{"$f":"'BdC e-services'!C73","v":0},null,"e-RDV Avant Cde",{"$f":"IF('BdC e-services'!F73<>\"\",'BdC e-services'!F73,'BdC e-services'!I73)","v":0},null,{"$f":"+'BdC e-services'!C83","v":0},null,"e-SAV"]